[Event "Bangabandhu Premier Div League 2022"]
[Site "Dhaka"]
[Date "2022.12.03"]
[Round "4.8"]
[White "Swarnavo Choudhury"]
[Black "Mehdi Hasan Parag"]
[Result "0-1"]
[ECO "C82"]
[WhiteElo "1977"]
[BlackElo "2185"]
[Annotator "TA"]
[PlyCount "90"]
[EventDate "2022.12.01"]
[EventCountry "BAN"]
[SourceTitle "playchess.com"]
[Source "ChessBase"]
[SourceQuality "1"]
[TimeControl "40/5400+30:1800+30"]

{[%evp 28,90,0,0,30,-49,-18,-55,-47,-46,-42,-138,0,0,0,-118,-113,-119,-110,-106,-95,-101,-77,-68,-72,-71,-49,-102,-92,-96,-86,-103,-95,-96,-103,-97,-102,-89,-31,-100,-114,-202,-204,-198,-200,-244,-175,-422,-429,-450,-408,-989,-982,-954,-942,-2034,-2034,-1475,-1522,-1192,-1129,-29966,-29951,-29982,-29983]} 1. e4 {[%emt 0:00:26]} e5 {[%emt 0:00:24]} 2. Nf3 {[%emt 0:00:19]} Nc6 {[%emt 0:00:03]} 3. Bb5 {[%emt 0:00:05][%cal Bf1b5,Bb5a4,Ba4b3][%mdl 32]} a6 {[%emt 0:00:11]} 4. Ba4 {[%emt 0:00:14]} Nf6 {[%emt 0:00:04]} 5. O-O {[%emt 0:00:30]} Nxe4 {[%emt 0:00:14]} 6. d4 {[%emt 0:01:37]} b5 {[%emt 0:02:22]} 7. Bb3 {[%emt 0:00:06]} d5 {[%emt 0:00:12]} 8. dxe5 {[%emt 0:00:10]} Be6 {[%emt 0:00:14]} 9. c3 {[%emt 0:00:19]} Bc5 {[%emt 0:00:12]} 10. Nbd2 {[%emt 0:05:11]} O-O {[%emt 1:31:34]} 11. Bc2 {[%emt 0:07:54]} Nxf2 {[%emt 0:00:00]} 12. Rxf2 {[%emt 0:00:02]} f6 {[%emt 0:00:00]} 13. exf6 {[%emt 0:15:58]} Bxf2+ {[%emt 0:00:00]} 14. Kxf2 {[%emt 0:00:09]} Qxf6 {[%emt 0:00:00]} 15. Nf1 {[%emt 0:09:59][%cal Oh2h4]} Rad8 {[%emt 0:00:00] [#] C82: Open Ruy Lopez: 9 c3 without 9...Be7.} 16. Be3 $146 {[%emt 0:55:31]} (16. Kg1 $11 Ne5 17. Be3) ({Predecessor:} 16. Kg1 Ne5 17. Be3 Nxf3+ 18. Qxf3 Qxf3 19. gxf3 Rxf3 20. Bc5 Bh3 21. Re1 Rxf1+ 22. Rxf1 Bxf1 23. Kxf1 {0-1 (48) Cole,S (1826)-Hoehne,M (1844) LSS email 2018}) 16... d4 $15 {[%emt 0:00:00]} ({Don't take} 16... Ne5 17. Bc5 $14) 17. cxd4 {[%emt 0:00:00]} Nxd4 {[%emt 0:03:30] Black is slightly better.} 18. Bxd4 {[%emt 0:00:00]} Rxd4 {[%emt 0:00:00] Really sharp!} ({Don't do} 18... Qxd4+ 19. Qxd4 Rxd4 20. Ne3 $14) 19. Qe2 {[%emt 0:00:00]} (19. Qe1 $1 $15) 19... c5 {[%emt 0:00:00] Black is more active.} ({Don't play} 19... Bc4 $6 20. Bb3 $11) (19... Rb4 $1 $17 20. Kg1 Rxb2) 20. Kg1 {[%emt 0:00:00]} Bg4 {[%emt 0:00:00][%cal Rg4f3]} 21. Qe5 {[%emt 0:00:00]} (21. Be4 $11) 21... Bxf3 $17 {[%emt 0:00:00]} 22. Qxf6 {[%emt 0:00:00]} Rxf6 {[%emt 0:00:00]} 23. gxf3 {[%emt 0:00:00]} Rxf3 {[%emt 0:03:00]} 24. Re1 {[%emt 0:00:55]} Rg4+ {[%emt 0:00:00]} 25. Ng3 {[%emt 0:01:58]} Rf6 {[%emt 0:00:00]} 26. Re5 {[%emt 0:01:31]} c4 {[%emt 0:00:00]} 27. Be4 {[%emt 0:00:29]} ({White should try} 27. b3 $15) 27... g6 {[%emt 0:00:00]} 28. Kg2 {[%emt 0:00:22]} h5 {[%emt 0:00:00]} 29. h3 {[%emt 0:00:28]} Rgf4 {[%emt 0:00:00] Hoping for ...Rf2+.} 30. Bd5+ {[%emt 0:00:19]} Kf8 {[%emt 0:00:00] ...Rf2+ is the strong threat.} 31. Re2 {[%emt 0:00:56] Inhibits Rf2+.} Rd6 {[%emt 0:00:00]} 32. Bf3 {[%emt 0:00:22]} Kg7 {[%emt 0:00:00]} (32... Rdd4 $17) 33. Ne4 {[%emt 0:00:36]} ({White should play} 33. Bxh5 $1 $15 b4 34. Bf3) 33... Rd3 {[%emt 0:00:00]} 34. Ng5 {[%emt 0:00:21] [#]} (34. Nd2 $17 {was the only chance.}) 34... Kh6 $1 $19 {[%emt 0:00:00]} 35. h4 {[%emt 0:00:28]} Rxh4 {[%emt 0:00:00]} 36. Ne6 {[%emt 0:00:39]} g5 {[%emt 0:00:00][%cal Bg6g5,Bg5g4,Bg4g3,Bg3g2][%mdl 32]} 37. Rf2 $2 {[%emt 0:00:25] [#]} (37. Nc5 {was necessary.} Rd6 38. Re5) 37... Rd6 $1 {[%emt 0:00:00]} 38. Nc5 {[%emt 0:00:24]} Rf4 {[%emt 0:00:00] Strongly threatening ...g4.} 39. Kg3 {[%emt 0:00:46] Against g4} (39. Re2 $142) 39... h4+ {[%emt 0:00:00]} 40. Kg2 {[%emt 0:00:14]} g4 {[%emt 0:00:00]} 41. Bb7 {[%emt 0:30:34]} Rxf2+ {[%emt 0:00:00]} 42. Kxf2 {[%emt 0:00:02]} Rd2+ {[%emt 0:00:00]} 43. Ke3 {[%emt 0:00:05]} Rxb2 {[%emt 0:00:00] ( -> ...g3)} 44. Kf4 {[%emt 0:00:17]} g3 {[%emt 0:00:00]} 45. Be4 {[%emt 0:00:34]} g2 {[%emt 0:00:00] Weighted Error Value: White=0.71/Black=0.13 (very precise)} 0-1

[Event "Bangabandhu Premier Div League 2022"]
[Site "Dhaka"]
[Date "2022.12.03"]
[Round "4.10"]
[White "Pantsulaia, Levan"]
[Black "Parveen, Tanima"]
[Result "1-0"]
[ECO "A28"]
[WhiteElo "2597"]
[BlackElo "1967"]
[Annotator "TA"]
[PlyCount "47"]
[EventDate "2022.11.30"]
[EventType "team-tourn"]
[EventCountry "BAN"]
[SourceTitle "playchess.com"]
[Source "ChessBase"]
[SourceQuality "1"]
[TimeControl "40/5400+30:1800+30"]

{[%evp 12,47,77,80,87,59,72,66,73,61,81,83,125,110,158,156,160,150,195,198,191,211,297,286,377,210,359,358,340,344,321,321,618,622,605,604,873,859]} 1. c4 {[%emt 0:00:11]} e5 {[%emt 0:00:15]} 2. Nc3 {[%emt 0:00:06]} Nf6 {[%emt 0:00:10]} 3. Nf3 {[%emt 0:00:07]} Nc6 {[%emt 0:00:11]} 4. e4 {[%emt 0:00:06]} Bc5 {[%emt 0:00:28]} 5. Nxe5 {[%emt 0:00:10]} Nxe5 {[%emt 0:03:56]} 6. d4 {[%emt 0:00:08]} Bxd4 {[%emt 0:00:12]} 7. Qxd4 {[%emt 0:00:12]} d6 {[%emt 0:00:49] A28: English Opening: Four Knights Variation.} 8. Bg5 {[%emt 0:00:53] [#]} Nc6 $146 {[%emt 0:05:50]} ({Predecessor:} 8... h6 9. Bh4 g5 10. Bg3 Be6 11. Bxe5 dxe5 12. Qxe5 c6 13. Be2 Qe7 14. O-O-O O-O 15. h4 {1-0 (33) Esipenko,A (2682)-Stoleriu,G (2349) Chess.com INT 2020}) 9. Qd2 {[%emt 0:02:17] White is more active.} h6 {[%emt 0:01:27] White is slightly better.} 10. Be3 {[%emt 0:00:33]} O-O {[%emt 0:03:44]} 11. f3 {[%emt 0:04:01] Prevents Ng4.} Re8 {[%emt 0:05:53]} 12. Be2 {[%emt 0:06:32]} Qe7 {[%emt 0:07:35]} (12... Be6 $142) 13. g4 {[%emt 0:02:39]} Bxg4 {[%emt 0:17:16]} 14. Rg1 $1 {[%emt 0:01:44] Threatens to win with 0-0-0.} ({Reject} 14. fxg4 $6 Nxe4 15. Nxe4 Qxe4 $14) 14... Bh5 {[%emt 0:05:35]} 15. Bxh6 {[%emt 0:00:23]} Bg6 {[%emt 0:01:04] [#]} 16. Bg5 {[%emt 0:00:59] And now Nd5 would win.} Qe5 {[%emt 0:08:35] [#]} (16... Qe6 $142 17. O-O-O Rac8) 17. O-O-O $1 $18 {[%emt 0:00:11]} Nd7 {[%emt 0:07:03]} 18. h4 {[%emt 0:08:38]} (18. f4 $142 Qa5 19. f5) 18... Qc5 {[%emt 0:04:47]} (18... Qa5 $142 19. b3 Nb6) 19. Be3 {[%emt 0:02:10]} Qb4 {[%emt 0:02:17]} 20. Rg5 {[%emt 0:05:57]} Re5 {[%emt 0:04:15] Inhibits h5.} 21. Rdg1 {[%emt 0:03:44][%cal Bd1g1,Bg1g5,Bg5b5][%mdl 32]} Rae8 $2 {[%emt 0:04:05]} (21... Rxg5 22. Rxg5 Nce5) 22. h5 {[%emt 0:00:17] White is clearly winning.} Rxg5 {[%emt 0:00:22]} 23. Rxg5 {[%emt 0:00:06]} Bh7 {[%emt 0:00:09]} 24. Rb5 {[%emt 0:00:09] Inhibits Re5. White took control after the opening.   Weighted Error Value: White=0.14 (very precise) /Black=0.59} 1-0

[Event "Bangabandhu Premier Div League 2022"]
[Site "Dhaka"]
[Date "2022.12.03"]
[Round "4.11"]
[White "Harikrishnan.A.Ra"]
[Black "Rakhmanov, Aleksandr"]
[Result "0-1"]
[ECO "D02"]
[WhiteElo "2409"]
[BlackElo "2630"]
[Annotator "TA"]
[PlyCount "66"]
[EventDate "2022.11.30"]
[EventType "team-tourn"]
[EventCountry "BAN"]
[SourceTitle "playchess.com"]
[Source "ChessBase"]
[SourceQuality "1"]
[TimeControl "40/5400+30:1800+30"]

{[%evp 9,66,5,11,0,0,-8,-3,-8,-4,-8,-18,-11,-10,-8,-15,-21,-20,-17,0,0,20,0,0,-7,0,-10,0,-19,0,0,0,0,0,0,0,0,0,-56,0,0,0,0,0,0,31,21,21,0,0,-119,-86,-214,-109,-674,-676,-814,-803,-29990,-29991]} 1. d4 {[%emt 0:00:18]} d5 {[%emt 0:00:43]} 2. Bf4 {[%emt 0:01:46]} e6 {[%emt 0:02:03]} 3. e3 {[%emt 0:00:33]} Bd6 {[%emt 0:00:06]} 4. Nf3 {[%emt 0:00:16]} Bxf4 {[%emt 0:00:56]} 5. exf4 {[%emt 0:00:06]} Qd6 {[%emt 0:01:57]} 6. Qc1 {[%emt 0:07:56] [#] D02: 1 d4 d5 2 Nf3 sidelines, including 2...Nf6 3 g3 and 2...Nf6 3 Bf4.} Ne7 $146 {[%emt 0:03:23]} ({Predecessor:} 6... c5 7. dxc5 Qxc5 8. Bd3 Ne7 9. O-O h6 10. Nbd2 O-O 11. Nb3 Qd6 12. c3 Nbc6 13. Qe3 {1-0 (30) Bluebaum,M (2639)-Van der Werf,M (2393) Chess.com INT 2021}) 7. c3 {[%emt 0:02:25]} b6 {[%emt 0:00:40]} 8. g3 {[%emt 0:02:26] The position is equal.} O-O {[%emt 0:06:23]} 9. Bd3 {[%emt 0:05:30]} Ba6 {[%emt 0:00:43]} 10. Bxa6 {[%emt 0:00:45]} Nxa6 {[%emt 0:00:08]} 11. O-O {[%emt 0:02:53]} c5 {[%emt 0:00:27]} 12. Na3 {[%emt 0:01:23]} Rac8 {[%emt 0:03:13]} 13. Nc2 {[%emt 0:01:34]} b5 {[%emt 0:02:08]} 14. Qd2 {[%emt 0:09:15]} Qb6 {[%emt 0:03:03]} 15. Ne5 {[%emt 0:07:18] Black must now prevent Nd7.} Rc7 {[%emt 0:00:58] Against Nd7} 16. h4 {[%emt 0:08:53]} Rfc8 {[%emt 0:01:32]} 17. h5 {[%emt 0:12:34][%cal Oh5h6]} h6 {[%emt 0:01:37]} (17... cxd4 {keeps more tension.} 18. Nxd4 b4 19. h6 Nc5) 18. g4 {[%emt 0:03:34]} b4 {[%emt 0:11:34]} 19. dxc5 {[%emt 0:08:26]} Nxc5 {[%emt 0:01:29] Hoping for ...Ne4.} 20. Nxb4 {[%emt 0:01:30]} a5 {[%emt 0:00:36]} 21. Nbd3 {[%emt 0:01:07]} Nxd3 {[%emt 0:00:46]} 22. Nxd3 {[%emt 0:01:10]} d4 {[%emt 0:00:09][%cal Rd4c3]} 23. cxd4 {[%emt 0:05:54]} (23. c4 $11) 23... Qxd4 {[%emt 0:07:32]} (23... Rd8 $1 $15) 24. Qe3 $11 {[%emt 0:02:02]} Rd8 {[%emt 0:03:14]} 25. Ne5 {[%emt 0:04:14]} Qb4 {[%emt 0:18:57]} 26. a3 {[%emt 0:00:34]} Qb5 {[%emt 0:01:25]} 27. Rfd1 {[%emt 0:03:35]} Nd5 {[%emt 0:00:33]} 28. Qd4 {[%emt 0:02:22]} (28. Qd2 {simplifies} Qb3 29. Rac1 Rxc1 30. Qxc1 Rb8 31. Rd4) 28... Rdc8 {[%emt 0:03:04]} 29. g5 {[%emt 0:01:37]} (29. Rd2 $11 {remains equal.}) 29... Qe2 $17 {[%emt 0:01:05]} 30. gxh6 {[%emt 0:01:06]} (30. Qd3 $17 Qxh5 31. Qg3) 30... gxh6 {[%emt 0:01:17]} ({Black should play} 30... Qxh5 $19 {aiming for ...f6.} 31. f5 (31. hxg7 $2 f6 $19) 31... Qxf5) 31. Kg2 $2 {[%emt 0:02:12][%mdl 8192] [#]} (31. Rd3 $17) 31... Rc4 $1 $19 {[%emt 0:01:22][%mdl 576]} 32. Nxc4 {[%emt 0:00:17]} (32. Re1 Rxd4) 32... Rxc4 {[%emt 0:00:10]} 33. Qa7 {[%emt 0:00:54]} Nxf4+ {[%emt 0:02:08] Weighted Error Value: White=0.70/Black=0.13 (very precise)} 0-1

[Event "Bangabandhu Premier Div League 2022"]
[Site "Dhaka"]
[Date "2022.12.03"]
[Round "4.12"]
[White "Zia, Tahsin Tajwar"]
[Black "Asif, Mahmud"]
[Result "1-0"]
[ECO "E07"]
[WhiteElo "2241"]
[BlackElo "1926"]
[Annotator "TA"]
[PlyCount "69"]
[EventDate "2022.11.30"]
[EventType "team-tourn"]
[EventCountry "BAN"]
[SourceTitle "playchess.com"]
[Source "ChessBase"]
[SourceQuality "1"]
[TimeControl "40/5400+30:1800+30"]

{[%evp 16,69,22,0,39,32,35,14,21,17,57,35,52,48,58,20,88,85,106,106,105,105,114,117,186,181,227,231,243,237,223,227,209,221,384,165,165,158,158,159,139,41,145,150,153,147,135,184,184,183,578,591,577,569,1379,1377]} 1. d4 {[%emt 0:00:06]} Nf6 {[%emt 0:00:14]} 2. c4 {[%emt 0:00:30]} e6 {[%emt 0:00:25]} 3. g3 {[%emt 0:00:29]} d5 {[%emt 0:01:57]} 4. Bg2 {[%emt 0:00:07]} Be7 {[%emt 0:01:07]} 5. Nf3 {[%emt 0:00:14]} O-O {[%emt 0:00:34]} 6. O-O {[%emt 0:00:18]} c6 {[%emt 0:02:56]} 7. Nc3 {[%emt 0:00:07]} Nbd7 {[%emt 0:03:30]} 8. Qd3 {[%emt 0:02:19]} b6 {[%emt 0:05:56]} 9. e4 {[%emt 0:02:21]} dxe4 {[%emt 0:02:20] E07: Closed Catalan: Main Line (5 Nf3 0-0 6 0-0 Nbd7).} 10. Nxe4 {[%emt 0:00:09]} Bb7 {[%emt 0:02:50] 10...Bb7 is better than 10...Nxe4.} 11. Nc3 {[%emt 0:04:49] [#]} Rc8 $146 {[%emt 0:08:41] The position is equal.} ({Predecessor:} 11... c5 12. d5 exd5 13. cxd5 Bd6 14. Qc2 a6 15. b3 b5 16. Bb2 b4 17. Ne4 Nxe4 18. Qxe4 {1-0 (38) Svane,R (2628)-Schwabeneder,F (2439) Austria 2022}) 12. Rd1 {[%emt 0:02:28]} Bd6 {[%emt 0:03:41]} 13. Ng5 {[%emt 0:11:43]} h6 {[%emt 0:05:16]} 14. Nge4 {[%emt 0:01:03]} Bb8 {[%emt 0:02:28]} 15. c5 {[%emt 0:04:59]} Nxe4 {[%emt 0:03:44]} (15... Nd5 $11 {remains equal.}) 16. Nxe4 $16 {[%emt 0:00:48]} Nf6 {[%emt 0:01:40]} 17. Nxf6+ $1 {[%emt 0:03:46]} Qxf6 {[%emt 0:00:11]} 18. b4 {[%emt 0:00:32]} e5 {[%emt 0:12:08]} 19. Bb2 {[%emt 0:01:05]} Rcd8 {[%emt 0:01:48]} (19... bxc5 $16 20. dxc5 (20. bxc5 Rce8 $16) 20... Rcd8) 20. dxe5 $18 {[%emt 0:12:30]} Bxe5 {[%emt 0:03:05]} (20... Qe7 {was worth a try.} 21. Qc3 Rfe8) 21. Bxe5 {[%emt 0:00:13]} Qxe5 {[%emt 0:00:13]} 22. Qxd8 {[%emt 0:01:56]} Rxd8 {[%emt 0:00:41]} 23. Rxd8+ {[%emt 0:00:04]} Kh7 {[%emt 0:00:09]} 24. Rad1 {[%emt 0:00:26]} bxc5 $2 {[%emt 0:01:08]} (24... Ba6 25. Bxc6 (25. cxb6 axb6 26. Bxc6 Bc4 $16) 25... Bc4) 25. bxc5 {[%emt 0:00:09]} (25. Bf1 $142) 25... Ba6 {[%emt 0:04:32]} 26. Bxc6 {[%emt 0:03:27] Black must now prevent Bd5.} Qxc5 {[%emt 0:03:13]} 27. Be4+ {[%emt 0:00:34]} g6 {[%emt 0:01:07] [#]} 28. R8d7 {[%emt 0:03:53]} (28. Bxg6+ $1 $16 {[%mdl 512]} Kg7 29. Bd3) 28... Bc4 {[%emt 0:02:07] [#]} (28... Be2 $1 $14) 29. Bd5 $1 $16 {[%emt 0:07:48] White has more active pieces.} Bxd5 {[%emt 0:01:00]} 30. R1xd5 {[%emt 0:00:07] KQ-KRR} Qc1+ {[%emt 0:00:12]} 31. Rd1 {[%emt 0:00:32]} Qc4 {[%emt 0:02:43]} 32. Rxa7 {[%emt 0:00:53] h4 is the strong threat.} Kg7 $2 {[%emt 0:00:08]} (32... h5 {is more resistant.} 33. h4 g5) 33. h4 $18 {[%emt 0:00:29] White is clearly winning.} g5 {[%emt 0:03:52]} 34. hxg5 {[%emt 0:04:41]} hxg5 {[%emt 0:00:15]} 35. Rdd7 {[%emt 0:00:16] Weighted Error Value: White=0.23 (precise) /Black=0.45} 1-0

[Event "Bangabandhu Premier Div League 2022"]
[Site "Dhaka"]
[Date "2022.12.04"]
[Round "5.1"]
[White "Mendonca, Leon Luke"]
[Black "abzid, Rahman"]
[Result "1/2-1/2"]
[ECO "D36"]
[WhiteElo "2565"]
[BlackElo "2043"]
[Annotator "TA"]
[PlyCount "144"]
[EventDate "2022.12.01"]
[EventCountry "BAN"]
[SourceTitle "playchess.com"]
[Source "ChessBase"]
[SourceQuality "1"]
[TimeControl "40/5400+30:1800+30"]

{[%evp 25,144,-20,-7,-13,0,-21,-19,-6,-18,-29,-30,-22,0,-27,-22,-31,0,-33,-29,-27,0,-41,-41,-36,-14,-25,0,0,129,88,107,110,303,81,70,52,43,41,60,0,31,0,0,-26,-26,-23,0,-97,-86,-76,-31,-139,-107,-132,-97,-123,-107,-114,-106,-124,-46,-94,-85,-113,-57,-44,-35,-64,-70,-108,-84,-164,-164,-258,-127,-81,0,-257,-197,-222,-164,-213,-79,-226,-232,-218,-218,-216,-210,-344,-278,-356,-275,-280,0,-356,-227,-225,-137,-358,-346,-454,-429,-463,-308,-619,-619,-619,-619,-619,-612,-610,-612,-593,-605,-548,-162,-389,0,-490,0]} 1. d4 {[%emt 0:00:03]} d5 {[%emt 0:00:19]} 2. c4 {[%emt 0:00:09]} e6 {[%emt 0:00:08]} 3. Nc3 {[%emt 0:00:06]} Nf6 {[%emt 0:00:09]} 4. cxd5 {[%emt 0:00:12]} exd5 {[%emt 0:00:17]} 5. Bg5 {[%emt 0:00:06]} Be7 {[%emt 0:00:11]} 6. e3 {[%emt 1:32:54]} O-O {[%emt 0:00:30]} 7. Bd3 {[%emt 0:00:00]} c6 {[%emt 1:32:26]} 8. Nf3 {[%emt 0:00:00]} Nbd7 {[%emt 0:00:00][%cal Bb8d7,Bd7f8,Bf8e6][%mdl 32]} 9. h3 {[%emt 0:01:30]} Re8 {[%emt 0:01:00]} 10. O-O {[%emt 0:00:30]} Nf8 {[%emt 0:00:30]} 11. Qc2 {[%emt 0:00:00]} g6 {[%emt 0:00:30]} 12. Bxf6 {[%emt 0:00:00]} Bxf6 {[%emt 0:00:00]} 13. b4 {[%emt 0:01:30]} Ne6 {[%emt 0:01:00]} 14. Rab1 {[%emt 0:00:30] D36: Queen's Gambit Declined: Exchange Variation: Main line (5 Bg5 c6 6 Qc2).} Bg7 {[%emt 0:00:00]} 15. Rfd1 Ng5 {[%emt 0:01:00]} 16. Nxg5 {[%emt 0:00:00] The position is equal.} Qxg5 {[%emt 0:00:30] [#]} 17. Kh1 $146 {[%emt 0:01:30]} ({Predecessor:} 17. Kh2 f5 18. f4 Qd8 19. Re1 Re6 20. Re2 Qe7 21. Qb3 Kf8 22. Rbe1 a6 23. a4 Bd7 24. a5 Re8 25. Nd1 {0-1 (51) Allan,P (2225)-Wu,H (2225) Victoria 2015}) 17... Qh4 {[%emt 0:00:30]} 18. Kg1 {[%emt 0:00:30]} Qg5 {[%emt 0:00:30]} 19. Kf1 {[%emt 0:00:00]} Qf6 {[%emt 0:00:30]} 20. Re1 {[%emt 0:00:00]} Qh4 {[%emt 0:00:30]} 21. Ne2 {[%emt 0:01:30]} (21. b5 $5) 21... a6 {[%emt 0:00:00]} 22. a4 {[%emt 0:00:30]} Bf8 {[%emt 0:00:00][%cal Oc8h3]} 23. Ng1 {[%emt 0:00:00]} (23. b5 $5) 23... Bd7 {[%emt 0:01:30]} 24. Nf3 {[%emt 0:00:00]} Qh6 {[%emt 0:00:30]} 25. b5 {[%emt 0:01:30]} axb5 {[%emt 0:00:00]} (25... cxb5 {feels hotter.} 26. Qc7 Bc8 27. Qa5 Qh5) 26. axb5 {[%emt 0:00:30]} Bxh3 {[%emt 0:01:00]} 27. gxh3 {[%emt 0:00:00]} Qxh3+ {[%emt 0:00:00]} 28. Ke2 {[%emt 0:01:00]} Rxe3+ $2 {[%emt 0:01:00]} 29. fxe3 $2 {[%emt 0:00:00]} (29. Kxe3 $18 {and the rest is easy.} c5 30. Ke2 (30. dxc5 Bh6+ 31. Ke2 Re8+ 32. Kd1 Qxf3+ 33. Be2 Qxf2 $14)) 29... Ra2 $16 {[%emt 0:00:00][%mdl 64]} 30. Rg1 {[%emt 0:01:00] Inhibits Qg2+.} Rxc2+ {[%emt 0:00:00]} 31. Bxc2 {[%emt 0:00:00]} c5 {[%emt 0:01:30]} 32. Kf2 {[%emt 0:00:10]} (32. dxc5 $1 $14 Bxc5 33. Rbd1) 32... Kg7 {[%emt 0:00:30]} 33. Rh1 {[%emt 0:01:20]} Qc8 {[%emt 0:00:30]} 34. Bd3 {[%emt 0:00:30]} c4 {[%emt 0:00:30]} 35. Bc2 {[%emt 0:00:30]} Bd6 {[%emt 0:00:30]} 36. e4 {[%emt 0:00:30]} (36. Rbg1 $1 $11 Qd7 37. Rb1) 36... dxe4 $17 {[%emt 0:00:30]} 37. Bxe4 {[%emt 0:00:30]} b6 {[%emt 0:00:30]} 38. Bc6 {[%emt 0:00:30]} (38. Rbe1 $1 $15) 38... Qf5 {[%emt 0:00:30][%mdl 1024] aiming for ...Qc2+. Black has strong compensation.} 39. Rbc1 {[%emt 0:00:30] Prevents Qc2+.} Qd3 {[%emt 0:00:30]} 40. Rhd1 {[%emt 0:00:00]} Qb3 {[%emt 0:00:30]} 41. Ne5 {[%emt 0:31:00]} c3 $1 {[%emt 0:30:30]} 42. Be4 {[%emt 0:00:30]} Qa4 {[%emt 0:00:30]} (42... h5 $1 $17 43. Re1 Qxb5) 43. Nf3 {[%emt 0:00:30]} (43. Ke3 $15 {deserves consideration.}) 43... Bf4 $1 {[%emt 0:00:30]} 44. Rc2 {[%emt 0:00:30] [#]} Qxb5 {[%emt 0:00:30]} (44... h5 $1 $17 45. Rg1 Qc4) 45. Rxc3 $15 {[%emt 0:00:30]} Qb2+ {[%emt 0:00:30]} 46. Rc2 {[%emt 0:00:00]} Qb3 {[%emt 0:00:30]} 47. Bd3 {[%emt 0:01:00]} b5 {[%emt 0:00:30]} 48. Ne1 {[%emt 0:00:30]} (48. Ng1 $17) 48... b4 $19 {[%emt 0:00:30]} 49. Ra1 {[%emt 0:00:30]} (49. Nf3 $142) 49... Qd5 {[%emt 0:00:30]} (49... h5 $19 {and Black stays clearly on top. White must now prevent ...h4.} 50. Rd1 h4) 50. Nf3 $17 {[%emt 0:00:30]} Qb3 $2 {[%emt 0:00:30]} (50... g5 $17 {Strongly threatening ...g4.} 51. Re2 h5) 51. Ne1 $1 $19 {[%emt 0:00:30]} ({Don't blunder} 51. Ke2 $2 Qe6+ 52. Kd1 Qe3 $19) 51... Qe6 {[%emt 0:00:30]} 52. Re2 {[%emt 0:00:30]} Qg4 {[%emt 0:00:00] Threatens to win with ...Bg3+.} 53. Be4 (53. Kf1 {is a better defense.}) 53... Qg3+ {[%emt 0:01:00]} 54. Kf1 {[%emt 0:01:00]} Be3 {[%emt 0:00:30][%csl Ge3][%cal Rg3g1]} 55. Bg2 {[%emt 0:00:30]} Bxd4 {[%emt 0:00:00]} 56. Rd1 Qf4+ {[%emt 0:01:00]} 57. Nf3 {[%emt 0:01:00]} (57. Bf3 $142 Bc3 58. Rf2) 57... Bc5 {[%emt 0:00:30]} 58. Rc2 {[%emt 0:00:30]} Qe3 {[%emt 0:00:30]} 59. Re2 {[%emt 0:00:30]} Qf4 {[%emt 0:00:00]} 60. Rc2 Be7 {[%emt 0:01:00] Hoping for ...b3.} 61. Rd4 {[%emt 0:01:00]} Qb8 {[%emt 0:00:30]} 62. Re2 $2 {[%emt 0:00:30] Against b3} (62. Rd3 $17) 62... Bf6 {[%emt 0:00:30]} 63. Rd7 {[%emt 0:00:30]} b3 {[%emt 0:00:30] And now ...b2 would win.} 64. Nd2 {[%emt 0:00:30]} b2 {[%emt 0:00:00]} ({Don't go for} 64... Qb5 $2 65. Rb7 Qf5+ 66. Rf2 Qd3+ 67. Re2 $19) 65. Bd5 $2 (65. Rb7 Qg3 66. Bd5) 65... b1=Q+ {[%emt 0:01:00]} ({Not} 65... b1=B 66. Rxf7+ Kh6 67. Rxf6 $11) 66. Nxb1 {[%emt 0:01:00]} Qxb1+ {[%emt 0:00:00]} 67. Kg2 {[%emt 0:00:30]} Qb5 {[%emt 0:00:00]} 68. Rxf7+ {[%emt 0:00:30]} Kh6 {[%emt 0:01:30]} 69. Bf3 {[%emt 0:00:30]} Qg5+ {[%emt 0:00:30]} 70. Kh3 {[%emt 0:00:30]} Qh4+ {[%emt 0:00:00]} 71. Kg2 {[%emt 0:00:30]} Qg5+ {[%emt 0:00:00]} 72. Kh3 $1 {[%emt 0:00:00]} Qh4+ $2 {[%emt 0:00:08] What a bad dream for White.   Weighted Error Value: White=0.29 (precise) /Black=0.41} ({Black should play} 72... Be5 $19 {[%csl Ge5][%cal Rg5g3]} 73. Bg4 {[#]} Qc1 $1) 1/2-1/2